lending/lending_fUSD_20250114
["ID","MTS","AMOUNT","RATE_DAILY","PERIOD"]
[348895563,1736863847106,-500.0,9.987e-05,2]
[348895565,1736863847117,-500.0,9.987e-05,2]
[348895567,1736863847127,-543.46564711,9.987e-05,2]
[348895568,1736863847138,-344.30893112,9.987e-05,2]
[348895569,1736863847149,-500.0,9.987e-05,2]
[348895570,1736863847160,-1170.8,9.987e-05,2]
[348895571,1736863847170,-500.0,9.987e-05,2]
[348895572,1736863847181,-500.0,9.987e-05,2]
[348895573,1736863847192,-500.0,9.987e-05,2]
[348895574,1736863847202,-213.60951509,9.987e-05,2]
[348895575,1736863847213,-1886.13,9.987e-05,2]
[348895576,1736863847224,-1259.42,9.987e-05,2]
[348895577,1736863847234,-1850.25,9.987e-05,2]
[348895578,1736863847246,-51094.48474625,9.987e-05,2]
[348895579,1736863847257,-2277.85272464,9.989e-05,2]
[348895580,1736863847268,-3523.0379082,9.989e-05,2]
[348895581,1736863847279,-2277.85272464,9.99e-05,2]
[348895583,1736863847291,-2277.85272464,9.99e-05,2]
[348895585,1736863847302,-28405.09161417,9.99e-05,2]
[348895587,1736863847314,-1000.0,9.99e-05,2]
[348895589,1736863847329,-1002.0,9.99e-05,2]
[348895591,1736863847341,-1000.0,9.99e-05,2]
[348895593,1736863847352,-1000.0,9.99e-05,2]
[348895595,1736863847364,-1000.0,9.99e-05,2]
[348895597,1736863847376,-1000.0,9.99e-05,2]
[348895600,1736863847387,-818.0,9.99e-05,2]
[348895602,1736863847400,-2241.25433266,9.99e-05,2]
[348895604,1736863847412,-900.14,9.991e-05,2]
[348895606,1736863847423,-2719.63,9.991e-05,2]
[348895608,1736863847434,-500.0,9.991e-05,2]
[348895610,1736863847445,-1240.33,9.991e-05,2]
[348895612,1736863847457,-20020.65720612,9.991e-05,2]
[348895614,1736863847468,-2241.25433266,9.992e-05,2]
[348895617,1736863847479,-2241.25433266,9.992e-05,2]
[348895619,1736863847489,-1698.48,9.992e-05,2]
[348895621,1736863847500,-621.12,9.992e-05,2]
[348895623,1736863847512,-1000.0,9.992e-05,2]
[348895625,1736863847523,-971.42,9.992e-05,2]
[348895627,1736863847535,-500.0,9.992e-05,2]
[348895630,1736863847546,-2349.24,9.992e-05,2]
[348895632,1736863847557,-2268.17,9.992e-05,2]
[348895634,1736863847568,-1258.178,9.992e-05,2]
[348895636,1736863847578,-3523.0379082,9.994e-05,2]
[348895638,1736863847589,-2277.85272464,9.994e-05,2]
[348895640,1736863847600,-3523.0379082,9.995e-05,2]
[348895642,1736863847611,-4198.02956405,9.995e-05,2]
[348895645,1736863847627,-46896.4551822,9.995e-05,2]
[348895647,1736863847638,-3523.0379082,9.996e-05,2]
[348895649,1736863847650,-2241.25433266,9.996e-05,2]
[348895651,1736863847660,-1259.21,9.997e-05,2]
[348895654,1736863847672,-566.0,9.997e-05,2]
[348895656,1736863847682,-2277.85272464,9.997e-05,2]
[348895658,1736863847693,-500.0,9.997e-05,2]
[348895660,1736863847706,-500.0,9.997e-05,2]
[348895662,1736863847717,-819.28,9.997e-05,2]
[348895665,1736863847727,-500.0,9.997e-05,2]
[348895667,1736863847739,-649.47447495,9.997e-05,2]
[348895669,1736863847750,-607.82,9.997e-05,2]
[348895671,1736863847761,-500.0,9.997e-05,2]
[348895673,1736863847770,-763.44,9.997e-05,2]
[348895675,1736863847780,-500.0,9.997e-05,2]
[348895711,1736863848148,-611.91,9.997e-05,2]
[348895714,1736863848163,-895.8,9.997e-05,2]
[348895716,1736863848174,-500.0,9.997e-05,2]
[348895718,1736863848184,-669.37,9.997e-05,2]
[348895720,1736863848194,-500.0,9.997e-05,2]
[348895722,1736863848204,-500.0,9.997e-05,2]
[348895723,1736863848214,-500.0,9.997e-05,2]
[348895725,1736863848224,-500.0,9.997e-05,2]
[348895727,1736863848234,-500.0,9.997e-05,2]
[348895729,1736863848244,-500.0,9.997e-05,2]
[348895731,1736863848254,-500.0,9.997e-05,2]
[348895733,1736863848264,-500.0,9.997e-05,2]
[348895735,1736863848274,-500.0,9.997e-05,2]
[348895737,1736863848283,-500.0,9.997e-05,2]
[348895739,1736863848295,-500.0,9.997e-05,2]
[348895741,1736863848304,-500.0,9.997e-05,2]
[348895743,1736863848317,-639.14,9.997e-05,2]
[348895745,1736863848327,-500.0,9.997e-05,2]
[348895747,1736863848336,-751.59,9.997e-05,2]
[348895749,1736863848346,-1324.78,9.997e-05,2]
[348895751,1736863848356,-992.79,9.997e-05,2]
[348895753,1736863848365,-500.0,9.997e-05,2]
[348895755,1736863848375,-500.0,9.997e-05,2]
[348895757,1736863848385,-500.0,9.997e-05,2]
[348895759,1736863848395,-500.0,9.997e-05,2]
[348895761,1736863848404,-500.0,9.997e-05,2]
[348895762,1736863848413,-500.0,9.997e-05,2]
[348895764,1736863848423,-3366.84,9.997e-05,2]
[348895766,1736863848433,-784.57,9.997e-05,2]
[348895768,1736863848443,-547.15,9.997e-05,2]
[348895770,1736863848453,-1990.43,9.997e-05,2]
[348895772,1736863848462,-500.0,9.997e-05,2]
[348895774,1736863848471,-1097.95,9.997e-05,2]
[348895776,1736863848480,-632.81492252,9.997e-05,2]
[348895779,1736863848500,-3030.42507748,9.997e-05,2]
[348895781,1736863848509,-1030.31,9.997e-05,2]
[348895783,1736863848519,-500.0,9.997e-05,2]
[348895785,1736863848528,-775.05,9.997e-05,2]
[348895787,1736863848538,-3178.51,9.997e-05,2]
[348895789,1736863848549,-500.0,9.997e-05,2]
[348895791,1736863848559,-789.21,9.997e-05,2]
[348895793,1736863848569,-500.0,9.997e-05,2]
[348895795,1736863848578,-656.48,9.997e-05,2]
[348895797,1736863848588,-500.0,9.997e-05,2]
[348895799,1736863848597,-1630.02,9.997e-05,2]
[348895801,1736863848607,-500.0,9.997e-05,2]
[348895803,1736863848617,-543.64,9.997e-05,2]
[348895805,1736863848628,-500.0,9.997e-05,2]
[348895807,1736863848638,-3567.82,9.997e-05,2]
[348895809,1736863848648,-778.95,9.997e-05,2]
[348895811,1736863848657,-500.0,9.997e-05,2]
[348895813,1736863848667,-552.46,9.997e-05,2]
[348895815,1736863848676,-170.93900567,9.997e-05,2]
[348895817,1736863848686,-587.99,9.997e-05,2]
[348895819,1736863848695,-500.0,9.997e-05,2]
[348895821,1736863848705,-779.1,9.997e-05,2]
[348895823,1736863848714,-500.0,9.997e-05,2]
[348895824,1736863848724,-500.0,9.997e-05,2]
[348895826,1736863848733,-866.12,9.997e-05,2]
[348895828,1736863848744,-500.0,9.997e-05,2]
[348895830,1736863848753,-796.01,9.997e-05,2]
[348895832,1736863848763,-500.0,9.997e-05,2]
[348895834,1736863848772,-2277.85272464,9.998e-05,2]
[348895836,1736863848783,-9286.05524892,9.998e-05,2]
[348895838,1736863848794,-500.0,9.998e-05,2]
[348895840,1736863848804,-500.0,9.998e-05,2]
[348895842,1736863848813,-219.30944806,9.998e-05,2]
[348895844,1736863848823,-19.74849525,9.998e-05,2]
[348896590,1736864377962,3516.0,0.0002,30]
[348896594,1736864654107,4240.05931,0.0001995,30]
[348896596,1736864791619,2088.65,8.219e-05,2]
[348896598,1736864860895,500.0,9.999e-05,7]
[348896622,1736865032182,-2000.0,8.735e-05,2]
[348896623,1736865032192,-1389.03923686,8.754e-05,2]
[348896624,1736865032201,-2575.20837135,8.754e-05,2]
[348896625,1736865032211,-169.74,8.754e-05,2]
[348896626,1736865032219,-274.42,8.795e-05,2]
[348896627,1736865032229,-835.57,8.832e-05,2]
[348896628,1736865032238,-250.0,8.848e-05,2]
[348896629,1736865032247,-170.13,8.969e-05,2]
[348896630,1736865032257,-250.0,8.974e-05,2]
[348896631,1736865032266,-150.0,8.975e-05,2]
[348896632,1736865032275,-300.0,8.994e-05,2]
[348896633,1736865032284,-6592.99,8.995e-05,2]
[348896634,1736865032294,-300.0,9.104e-05,2]
[348896635,1736865032303,-500.0,9.112e-05,2]
[348896636,1736865032313,-1100.03,9.117e-05,2]
[348896637,1736865032322,-1000.0,9.118e-05,2]
[348896638,1736865032332,-1791.14,9.131e-05,2]
[348896639,1736865032344,-10109.38,9.497e-05,2]
[348896640,1736865032354,-19060.34870406,9.497e-05,2]
[348896641,1736865032366,-2176.09119283,9.497e-05,2]
[348896642,1736865032397,-1004.05325544,9.497e-05,2]
[348896643,1736865032407,-150.0,9.669e-05,2]
[348896644,1736865032417,-377.71,9.67e-05,2]
[348896645,1736865032426,-6914.07,9.67e-05,2]
[348896646,1736865032435,-293.44740061,9.67e-05,2]
[348896647,1736865032446,-1218.34676117,9.67e-05,2]
[348896648,1736865032457,-500.0,9.67e-05,2]
[348896649,1736865032716,-2920.01583822,9.67e-05,2]
[348896650,1736865032728,-467.6177341,9.8e-05,2]
[348896651,1736865032737,-420.0,9.894e-05,2]
[348896652,1736865032747,-3943.06688768,9.9e-05,2]
[348896653,1736865032784,-1917.18554232,9.9e-05,2]
[348896655,1736865032794,-835.57,9.936e-05,2]
[348896657,1736865032804,-498.47288022,9.945e-05,2]
[348896659,1736865032815,-672.52711978,9.945e-05,2]
[348896661,1736865032825,-250.0,9.95e-05,2]
[348896662,1736865032834,-323.85288022,9.97e-05,2]
[348896663,1736865032850,-1792.327,9.97e-05,2]
[348896665,1736865032867,-999.992,9.97e-05,2]
[348896668,1736865032878,-399.08438244,9.97e-05,2]
[348896673,1736865032897,-4870.93388737,9.97e-05,2]
[348896674,1736865032906,-5043.36611263,9.97e-05,2]
[348896677,1736865032918,-112858.90275016,9.97e-05,2]
[348896679,1736865032927,-10027.65494241,9.971e-05,2]
[348896681,1736865032936,-896.94,9.971e-05,2]
[348896683,1736865032945,-3614.91,9.971e-05,2]
[348896685,1736865032954,-1601.99,9.971e-05,2]
[348896687,1736865032963,-3152.76,9.971e-05,2]
[348896689,1736865032973,-8857.74,9.971e-05,2]
[348896691,1736865032983,-500.0,9.971e-05,2]
[348896693,1736865032992,-1088.28,9.971e-05,2]
[348896695,1736865033002,-500.0,9.971e-05,2]
[348896697,1736865033011,-2680.29,9.971e-05,2]
[348896699,1736865033020,-1567.01,9.971e-05,2]
[348896701,1736865033030,-1473.78,9.971e-05,2]
[348896703,1736865033039,-3209.08,9.971e-05,2]
[348896705,1736865033049,-500.0,9.971e-05,2]
[348896707,1736865033059,-4698.14,9.971e-05,2]
[348896709,1736865033069,-2163.06,9.971e-05,2]
[348896711,1736865033079,-1809.7619073,9.971e-05,2]
[348896713,1736865033094,-1298.7080927,9.971e-05,2]
[348896715,1736865033104,-500.0,9.971e-05,2]
[348896717,1736865033114,-1536.72,9.971e-05,2]
[348896719,1736865033123,-1941.6,9.971e-05,2]
[348896721,1736865033133,-2112.94,9.971e-05,2]
[348896723,1736865033144,-1210.29,9.971e-05,2]
[348896725,1736865033154,-3962.11,9.971e-05,2]
[348896727,1736865033164,-1296.46,9.971e-05,2]
[348896729,1736865033173,-4165.47,9.971e-05,2]
[348896731,1736865033183,-1651.41,9.971e-05,2]
[348896733,1736865033192,-1684.16,9.971e-05,2]
[348896735,1736865033202,-876.71,9.971e-05,2]
[348896737,1736865033211,-500.0,9.971e-05,2]
[348896739,1736865033220,-1243.33,9.971e-05,2]
[348896741,1736865033229,-1147.363389,9.971e-05,2]
[348896743,1736865033239,-1150.57,9.971e-05,2]
[348896745,1736865033249,-1206.06,9.971e-05,2]
[348896747,1736865033259,-2246.15,9.971e-05,2]
[348896749,1736865033269,-1746.37,9.971e-05,2]
[348896751,1736865033279,-158.98037,9.971e-05,2]
[348896753,1736865033289,-500.0,9.971e-05,2]
[348896755,1736865033299,-157.444712,9.971e-05,2]
[348896757,1736865033308,-866.56,9.971e-05,2]
[348896781,1736865033317,-452.82730711,9.971e-05,2]
[348896784,1736865033558,-47.17269289,9.971e-05,2]
[348896786,1736865033568,-500.0,9.971e-05,2]
[348896788,1736865033578,-2517.95,9.971e-05,2]
[348896790,1736865033590,-42933.01244479,9.972e-05,2]
[348896792,1736865033603,-12250.67325375,9.972e-05,2]
[348896794,1736865033612,-2462.4615513,9.972e-05,2]
[348896796,1736865033622,-11186.16492762,9.972e-05,2]
[348897227,1736865038095,-4861.83504513,9.972e-05,2]
[348897229,1736865038108,-417.98,9.972e-05,2]
[348897231,1736865038119,-5000.0957014,9.972e-05,2]
[348897242,1736865038214,-2500.99,9.971e-05,2]
[348897244,1736865038224,-11888.8596024,9.972e-05,2]
[348897246,1736865038236,-4019.66887,9.972e-05,2]
[348897248,1736865038249,-11357.50001164,9.972e-05,2]
[348897250,1736865038260,-22387.20481563,9.972e-05,2]
[348897251,1736865038271,-4200.0,9.972e-05,2]
[348897252,1736865038283,-3103.57100234,9.972e-05,2]
[348897260,1736865038386,-319724.99594215,9.972e-05,2]
[348897262,1736865038396,-71609.25304019,9.972e-05,2]
[348897264,1736865038406,-1507.41537463,9.972e-05,2]
[348897266,1736865038416,-1000.4410949,9.972e-05,2]
[348897268,1736865038425,-7352.1892556,9.973e-05,2]
[348897269,1736865038434,-347.0,9.973e-05,2]
[348897270,1736865038444,-987.0,9.973e-05,2]
[348897271,1736865038454,-500.0,9.973e-05,2]
[348897272,1736865038463,-159.8722014,9.973e-05,2]
[348897273,1736865038472,-159.87217515,9.973e-05,2]
[348897274,1736865038482,-159.87299562,9.973e-05,2]
[348897275,1736865038491,-151.89119695,9.973e-05,2]
[348897276,1736865038500,-166.17251267,9.973e-05,2]
[348897277,1736865038510,-151.87859133,9.973e-05,2]
[348897278,1736865038520,-151.89536857,9.973e-05,2]
[348897279,1736865038530,-251.82433794,9.973e-05,2]
[348897280,1736865038540,-159.88480622,9.973e-05,2]
[348897281,1736865038549,-260.61216013,9.973e-05,2]
[348897282,1736865038559,-500.0,9.973e-05,2]
[348897283,1736865038568,-159.05611515,9.973e-05,2]
[348897284,1736865038577,-500.0,9.973e-05,2]
[348897285,1736865038587,-161.78673151,9.973e-05,2]
[348897286,1736865038597,-160.01746146,9.973e-05,2]
[348897287,1736865038608,-1000.44109487,9.973e-05,2]
[348897288,1736865038618,-226.91654452,9.973e-05,2]
[348897289,1736865038628,-2462.4615513,9.973e-05,2]
[348897290,1736865038638,-8386.19015003,9.973e-05,2]
[348897291,1736865038648,-63943.94186144,9.973e-05,2]
[348897292,1736865038657,-1000.44109487,9.973e-05,2]
[348897293,1736865038667,-5764.29224086,9.974e-05,2]
[348897295,1736865038676,-8386.19015003,9.974e-05,2]
[348897296,1736865038686,-71609.25304019,9.974e-05,2]
[348897298,1736865038695,-1000.44109487,9.974e-05,2]
[348897299,1736865038704,-1000.44109487,9.975e-05,2]
[348897300,1736865038716,-1507.41537463,9.975e-05,2]
[348897301,1736865038726,-250.4913817,9.975e-05,2]
[348897302,1736865038736,-1000.44109487,9.976e-05,2]
[348897303,1736865038746,-22424.9070694,9.976e-05,2]
[348897304,1736865038757,-170.82799609,9.976e-05,2]
[348897305,1736865038766,-1000.44109487,9.976e-05,2]
[348897306,1736865038776,-55183.68569854,9.977e-05,2]
[348897307,1736865038786,-13174.56681951,9.977e-05,2]
[348897308,1736865038795,-1000.44109487,9.977e-05,2]
[348897309,1736865038806,-398147.87591831,9.977e-05,2]
[348897310,1736865038816,-10846.89582938,9.977e-05,2]
[348897311,1736865038826,-250.4913817,9.977e-05,2]
[348897312,1736865038836,-63943.94186144,9.978e-05,2]
[348897313,1736865038847,-22424.9070694,9.978e-05,2]
[348897314,1736865038856,-226.91654452,9.978e-05,2]
[348897315,1736865038865,-1000.44109487,9.978e-05,2]
[348897316,1736865038875,-27982.09206603,9.978e-05,2]
[348897317,1736865038884,-1507.41537463,9.978e-05,2]
[348897319,1736865038892,-8386.19015003,9.978e-05,2]
[348897320,1736865038902,-398147.87591831,9.979e-05,2]
[348897321,1736865038917,-1000.44109487,9.979e-05,2]
[348897322,1736865038927,-7352.1892556,9.979e-05,2]
[348897323,1736865038937,-1000.44109487,9.979e-05,2]
[348897324,1736865038947,-437.76,9.98e-05,2]
[348897325,1736865038957,-218158.14055754,9.98e-05,2]
[348897326,1736865038967,-71609.25304019,9.98e-05,2]
[348897327,1736865038978,-10846.89582938,9.98e-05,2]
[348897328,1736865038988,-1000.44109487,9.98e-05,2]
[348897329,1736865038998,-13174.56681951,9.98e-05,2]
[348897330,1736865039008,-7352.1892556,9.981e-05,2]
[348897331,1736865039019,-1000.44109487,9.981e-05,2]
[348897332,1736865039028,-10027.65494241,9.981e-05,2]
[348897333,1736865039039,-165551.0570956,9.981e-05,2]
[348897334,1736865039050,-250.4913817,9.981e-05,2]
[348897335,1736865039059,-1000.44109487,9.982e-05,2]
[348897336,1736865039069,-22424.9070694,9.982e-05,2]
[348897337,1736865039079,-1000.44109487,9.982e-05,2]
[348897338,1736865039091,-7352.1892556,9.983e-05,2]
[348897339,1736865039100,-8386.19015003,9.983e-05,2]
[348897340,1736865039110,-1000.44109487,9.983e-05,2]
[348897341,1736865039119,-63943.94186144,9.983e-05,2]
[348897342,1736865039129,-2462.4615513,9.983e-05,2]
[348897343,1736865039140,-5764.29224086,9.983e-05,2]
[348897344,1736865039150,-1507.41537463,9.984e-05,2]
[348897345,1736865039160,-1000.44109487,9.984e-05,2]
[348897346,1736865039170,-226.91654452,9.984e-05,2]
[348897347,1736865039180,-226.91654452,9.984e-05,2]
[348897348,1736865039190,-55183.68569854,9.984e-05,2]
[348897349,1736865039199,-10846.89582938,9.984e-05,2]
[348897350,1736865039208,-1000.44109487,9.985e-05,2]
[348897351,1736865039219,-500.0,9.985e-05,2]
[348897352,1736865039229,-500.0,9.985e-05,2]
[348897353,1736865039239,-739.01,9.985e-05,2]
[348897354,1736865039249,-500.0,9.985e-05,2]
[348897355,1736865039259,-500.0,9.985e-05,2]
[348897356,1736865039269,-500.0,9.985e-05,2]
[348897357,1736865039278,-500.0,9.985e-05,2]
[348897358,1736865039288,-539.28,9.985e-05,2]
[348897359,1736865039298,-824.7,9.985e-05,2]
[348897360,1736865039308,-500.0,9.985e-05,2]
[348897361,1736865039318,-500.0,9.985e-05,2]
[348897362,1736865039328,-500.0,9.985e-05,2]
[348897363,1736865039339,-645.34,9.985e-05,2]
[348897364,1736865039349,-500.0,9.985e-05,2]
[348897365,1736865039359,-500.0,9.985e-05,2]
[348897366,1736865039369,-500.0,9.985e-05,2]
[348897367,1736865039379,-500.0,9.985e-05,2]
[348897368,1736865039389,-800.3,9.985e-05,2]
[348897369,1736865039399,-500.0,9.985e-05,2]
[348897370,1736865039409,-500.0,9.985e-05,2]
[348897371,1736865039419,-500.0,9.985e-05,2]
[348897372,1736865039430,-500.0,9.985e-05,2]
[348897373,1736865039440,-927.74,9.985e-05,2]
[348897374,1736865039450,-500.0,9.985e-05,2]
[348897375,1736865039460,-500.0,9.985e-05,2]
[348897376,1736865039470,-695.13,9.985e-05,2]
[348897377,1736865039480,-661.55,9.985e-05,2]
[348897378,1736865039490,-500.0,9.985e-05,2]
[348897379,1736865039501,-500.0,9.985e-05,2]
[348897380,1736865039512,-500.0,9.985e-05,2]
[348897381,1736865039521,-500.0,9.985e-05,2]
[348897382,1736865039532,-500.0,9.985e-05,2]
[348897383,1736865039541,-500.0,9.985e-05,2]
[348897384,1736865039551,-653.51,9.985e-05,2]
[348897385,1736865039561,-264.84899937,9.985e-05,2]
[348897386,1736865039570,-500.0,9.985e-05,2]
[348897387,1736865039580,-500.0,9.985e-05,2]
[348897388,1736865039591,-467.87159681,9.985e-05,2]
[348897389,1736865039600,-500.0,9.985e-05,2]
[348897390,1736865039609,-500.0,9.985e-05,2]
[348897391,1736865039618,-500.0,9.985e-05,2]
[348897392,1736865039629,-500.0,9.985e-05,2]
[348897393,1736865039639,-500.0,9.985e-05,2]
[348897394,1736865039649,-526.24,9.985e-05,2]
[348897395,1736865039659,-782.45,9.985e-05,2]
[348897396,1736865039669,-500.0,9.985e-05,2]
[348897397,1736865039678,-500.0,9.985e-05,2]
[348897398,1736865039688,-1020.8,9.985e-05,2]
[348897399,1736865039698,-500.0,9.985e-05,2]
[348897400,1736865039708,-500.0,9.985e-05,2]
[348897401,1736865039718,-500.0,9.985e-05,2]
[348897402,1736865039733,-500.0,9.985e-05,2]
[348897403,1736865039745,-500.0,9.985e-05,2]
[348897404,1736865039754,-500.0,9.985e-05,2]
[348897405,1736865039766,-500.0,9.985e-05,2]
[348897406,1736865039776,-913.18,9.985e-05,2]
[348897407,1736865039785,-634.49,9.985e-05,2]
[348897408,1736865039795,-838.27,9.985e-05,2]
[348897409,1736865039805,-1097.63,9.985e-05,2]
[348897410,1736865039814,-1147.98,9.985e-05,2]
[348897411,1736865039825,-902.03,9.985e-05,2]
[348897412,1736865039835,-500.0,9.985e-05,2]
[348897413,1736865039848,-500.0,9.985e-05,2]
[348897415,1736865039858,-500.0,9.985e-05,2]
[348897417,1736865039868,-500.0,9.985e-05,2]
[348897419,1736865039878,-500.0,9.985e-05,2]
[348897420,1736865039888,-500.0,9.985e-05,2]
[348897421,1736865039898,-500.0,9.985e-05,2]
[348897422,1736865039908,-500.0,9.985e-05,2]
[348897423,1736865039918,-500.0,9.985e-05,2]
[348897424,1736865039929,-765.32,9.985e-05,2]
[348897425,1736865039939,-500.0,9.985e-05,2]
[348897426,1736865039950,-500.0,9.985e-05,2]
[348897427,1736865039962,-500.0,9.985e-05,2]
[348897428,1736865039972,-500.0,9.985e-05,2]
[348897429,1736865039982,-668.16,9.985e-05,2]
[348897430,1736865039992,-500.0,9.985e-05,2]
[348897431,1736865040002,-853.07,9.985e-05,2]
[348897432,1736865040011,-500.0,9.985e-05,2]
[348897433,1736865040021,-678.97,9.985e-05,2]
[348897434,1736865040031,-500.0,9.985e-05,2]
[348897435,1736865040041,-756.01,9.985e-05,2]
[348897436,1736865040050,-648.95,9.985e-05,2]
[348897437,1736865040060,-500.0,9.985e-05,2]
[348897438,1736865040070,-951.59,9.985e-05,2]
[348897439,1736865040080,-151.0,9.985e-05,2]
[348897440,1736865040092,-151.0,9.985e-05,2]
[348897441,1736865040102,-500.0,9.985e-05,2]
[348897442,1736865040112,-500.0,9.985e-05,2]
[348897443,1736865040122,-22424.9070694,9.985e-05,2]
[348897444,1736865040132,-27982.09206603,9.985e-05,2]
[348897445,1736865040144,-1000.44109487,9.985e-05,2]
[348897446,1736865040154,-165551.0570956,9.985e-05,2]
[348897447,1736865040165,-398147.87591831,9.986e-05,2]
[348897448,1736865040175,-13174.56681951,9.986e-05,2]
[348897449,1736865040185,-1000.44109487,9.986e-05,2]
[348897450,1736865040195,-250.4913817,9.986e-05,2]
[348897451,1736865040204,-165551.0570956,9.986e-05,2]
[348897452,1736865040214,-10846.89582938,9.986e-05,2]
[348897453,1736865040225,-13174.56681951,9.987e-05,2]
[348897454,1736865040234,-250.4913817,9.987e-05,2]
[348897455,1736865040244,-55183.68569854,9.987e-05,2]
[348897456,1736865040255,-63943.94186144,9.987e-05,2]
[348897457,1736865040264,-433.5229867,9.987e-05,2]
[348897458,1736865040275,-3510.6,9.987e-05,2]
[348897459,1736865040285,-3046.08,9.987e-05,2]
[348897460,1736865040295,-553.36526145,9.987e-05,2]
[348897461,1736865040305,-1562.1,9.987e-05,2]
[348897462,1736865040315,-3419.16,9.987e-05,2]
[348897463,1736865040324,-500.0,9.987e-05,2]
[348897464,1736865040333,-500.0,9.987e-05,2]
[348897465,1736865040345,-500.0,9.987e-05,2]
[348897466,1736865040355,-500.0,9.987e-05,2]
[348897467,1736865040364,-500.0,9.987e-05,2]
[348897468,1736865040373,-873.78,9.987e-05,2]
[348897469,1736865040382,-500.0,9.987e-05,2]
[348897470,1736865040392,-802.52,9.987e-05,2]
[348897471,1736865040402,-1424.15,9.987e-05,2]
[348897472,1736865040412,-500.0,9.987e-05,2]
[348897473,1736865040423,-948.59,9.987e-05,2]
[348897474,1736865040432,-1112.56,9.987e-05,2]
[348897475,1736865040453,-500.0,9.987e-05,2]
[348897476,1736865040464,-500.0,9.987e-05,2]
[348897477,1736865040474,-500.0,9.987e-05,2]
[348897478,1736865040484,-500.0,9.987e-05,2]
[348897479,1736865040494,-500.0,9.987e-05,2]
[348897480,1736865040504,-500.0,9.987e-05,2]
[348897481,1736865040514,-1562.76,9.987e-05,2]
[348897482,1736865040524,-6936.34,9.987e-05,2]
[348897483,1736865040534,-1613.14,9.987e-05,2]
[348897484,1736865040544,-2299.8,9.987e-05,2]
[348897485,1736865040554,-210.64207761,9.987e-05,2]
[348897486,1736865040563,-1562.07,9.987e-05,2]
[348897487,1736865040573,-1825.8,9.987e-05,2]
[348897488,1736865040584,-3667.88,9.987e-05,2]
[348897489,1736865040596,-1700.29,9.987e-05,2]
[348897490,1736865040606,-1603.13,9.987e-05,2]
[348897491,1736865040617,-500.0,9.987e-05,2]
[348897492,1736865040627,-1072.06,9.987e-05,2]
[348897493,1736865040637,-2149.96,9.987e-05,2]
[348897494,1736865040647,-1226.33,9.987e-05,2]
[348897495,1736865040657,-1164.63,9.987e-05,2]
[348897496,1736865040667,-200.0,9.987e-05,2]
[348897497,1736865040677,-55183.68569854,9.988e-05,2]
[348897498,1736865040686,-1507.41537463,9.988e-05,2]
[348897499,1736865040695,-63943.94186144,9.988e-05,2]
[348897500,1736865040704,-398147.87591831,9.988e-05,2]
[348897501,1736865040715,-31083.20146589,9.988e-05,2]
[348897502,1736865040729,-151.0,9.988e-05,2]
[348897503,1736865040738,-55183.68569854,9.989e-05,2]
[348897504,1736865040748,-13174.56681951,9.989e-05,2]
[348897505,1736865040759,-165551.0570956,9.989e-05,2]
[348897506,1736865040768,-8386.19015003,9.989e-05,2]
[348897507,1736865040778,-10027.65494241,9.989e-05,2]
[348897508,1736865040788,-156758.31690931,9.99e-05,2]
[348897509,1736865041424,-1353.23790222,9.971e-05,2]
[348897510,1736865041450,-708.92924413,9.971e-05,2]
[348897511,1736865041461,-2758.83285365,9.971e-05,2]
[348897512,1736865041470,-500.0,9.985e-05,2]
[348897513,1736865041481,-1264.2326493,9.99e-05,2]
[348897514,1736865041493,-7528.50753699,9.99e-05,2]
[348897515,1736865041503,-13174.56681951,9.99e-05,2]
[348897516,1736865041513,-22424.9070694,9.99e-05,2]
[348897517,1736865041523,-207.8097041,9.99e-05,2]
[348897518,1736865041535,-11000.2869,9.99e-05,2]
[348897519,1736865041556,-16773.99546193,9.99e-05,2]
[348897520,1736865041566,-42414.17458673,9.991e-05,2]
[348897521,1736865041913,-1485.09389555,9.991e-05,2]
[348897522,1736865041933,-11284.41721626,9.991e-05,2]
[348897523,1736865041943,-55183.68569854,9.991e-05,2]
[348897524,1736865041952,-2462.4615513,9.992e-05,2]
[348897525,1736865041961,-5764.29224086,9.992e-05,2]
[348897526,1736865041971,-27982.09206603,9.992e-05,2]
[348897527,1736865041980,-1507.41537463,9.992e-05,2]
[348897528,1736865041989,-5764.29224086,9.992e-05,2]
[348897529,1736865041999,-1006.542,9.992e-05,2]
[348897530,1736865042008,-151.0,9.992e-05,2]
[348897531,1736865042017,-165551.0570956,9.992e-05,2]
[348897532,1736865042027,-5764.29224086,9.993e-05,2]
[348897533,1736865042036,-10846.89582938,9.993e-05,2]
[348897534,1736865042045,-7352.1892556,9.994e-05,2]
[348897535,1736865042054,-2462.4615513,9.994e-05,2]